[Event "*** Titled Tuesday Blitz"]
[Site "Chess.com"]
[Date "2020.04.28"]
[Round "1"]
[White "AsaHoffmann"]
[Black "LionTheLeon_06"]
[Result "0-1"]
[WhiteElo "2310"]
[BlackElo "2636"]
[TimeControl "180+1"]
[EndTime "10:04:44 PDT"]
[Termination "LionTheLeon_06 won by resignation"]

1. d4 {[%clk 0:02:56.2]} 1... Nf6 {[%clk 0:02:59.5]} 2. Bg5 {[%clk 0:02:54.7]}
2... e6 {[%clk 0:02:57.8]} 3. Nd2 {[%clk 0:02:53.2]} 3... Be7 {[%clk 0:02:54.1]}
4. e3 {[%clk 0:02:52]} 4... h6 {[%clk 0:02:53.5]} 5. Bh4 {[%clk 0:02:51.6]} 5...
b6 {[%clk 0:02:52]} 6. Bd3 {[%clk 0:02:50.7]} 6... Bb7 {[%clk 0:02:51.9]} 7.
Ngf3 {[%clk 0:02:50.1]} 7... c5 {[%clk 0:02:51.4]} 8. c3 {[%clk 0:02:49.7]} 8...
cxd4 {[%clk 0:02:50.4]} 9. exd4 {[%clk 0:02:49.4]} 9... d6 {[%clk 0:02:50.4]}
10. Qe2 {[%clk 0:02:49.2]} 10... Nbd7 {[%clk 0:02:49.9]} 11. O-O {[%clk
0:02:48.4]} 11... O-O {[%clk 0:02:49.1]} 12. Rfe1 {[%clk 0:02:47.6]} 12... Re8
{[%clk 0:02:48.7]} 13. h3 {[%clk 0:02:47.2]} 13... Bf8 {[%clk 0:02:48.3]} 14.
Ne4 {[%clk 0:02:43]} 14... Be7 {[%clk 0:02:41.7]} 15. Bg3 {[%clk 0:02:41.2]}
15... Bxe4 {[%clk 0:02:35.6]} 16. Bxe4 {[%clk 0:02:39.4]} 16... Nxe4 {[%clk
0:02:36.5]} 17. Qxe4 {[%clk 0:02:38.7]} 17... d5 {[%clk 0:02:37.2]} 18. Qd3
{[%clk 0:02:36.1]} 18... Qc8 {[%clk 0:02:32.5]} 19. a4 {[%clk 0:02:33.5]} 19...
Qb7 {[%clk 0:02:30.6]} 20. a5 {[%clk 0:02:32.2]} 20... b5 {[%clk 0:02:28.6]} 21.
b4 {[%clk 0:02:26.1]} 21... a6 {[%clk 0:02:25.9]} 22. Bf4 {[%clk 0:02:12.9]}
22... Rac8 {[%clk 0:02:23.9]} 23. Bd2 {[%clk 0:02:11.7]} 23... Bd6 {[%clk
0:02:21.6]} 24. Re2 {[%clk 0:02:09.2]} 24... Nf6 {[%clk 0:02:19.7]} 25. Be1
{[%clk 0:02:05.8]} 25... Ne4 {[%clk 0:02:15.7]} 26. Re3 {[%clk 0:01:59]} 26...
Bb8 {[%clk 0:02:11.9]} 27. Rc1 {[%clk 0:01:52.4]} 27... Qc7 {[%clk 0:02:09.3]}
28. Ne5 {[%clk 0:01:43.8]} 28... f6 {[%clk 0:02:04.3]} 29. Nf3 {[%clk
0:01:34.1]} 29... Rcd8 {[%clk 0:01:52]} 30. Nd2 {[%clk 0:01:31.5]} 30... Qh2+
{[%clk 0:01:49.9]} 31. Kf1 {[%clk 0:01:29.9]} 31... f5 {[%clk 0:01:43.2]} 32.
Nf3 {[%clk 0:01:22.3]} 32... Qh1+ {[%clk 0:01:30.2]} 33. Ng1 {[%clk 0:01:21.4]}
33... Bh2 {[%clk 0:01:29]} 0-1

[Event "*** Titled Tuesday Blitz"]
[Site "Chess.com"]
[Date "2020.04.28"]
[Round "1"]
[White "Bacyanide"]
[Black "Murad_Ibrahimli"]
[Result "0-1"]
[WhiteElo "2411"]
[BlackElo "2767"]
[TimeControl "180+1"]
[EndTime "10:04:49 PDT"]
[Termination "Murad_Ibrahimli won by resignation"]

1. d4 {[%clk 0:02:41.8]} 1... d5 {[%clk 0:02:58.7]} 2. Nf3 {[%clk 0:02:38.8]}
2... Nf6 {[%clk 0:02:58.1]} 3. Bf4 {[%clk 0:02:39.3]} 3... e6 {[%clk 0:02:56.8]}
4. e3 {[%clk 0:02:39.8]} 4... c5 {[%clk 0:02:56.3]} 5. Nbd2 {[%clk 0:02:39.2]}
5... Bd6 {[%clk 0:02:56.2]} 6. Bg3 {[%clk 0:02:39.2]} 6... O-O {[%clk
0:02:55.4]} 7. c3 {[%clk 0:02:38.2]} 7... Nc6 {[%clk 0:02:55.2]} 8. Bd3 {[%clk
0:02:38.1]} 8... Qe7 {[%clk 0:02:53.5]} 9. Ne5 {[%clk 0:02:34.3]} 9... Bd7
{[%clk 0:02:48.5]} 10. f4 {[%clk 0:02:33.5]} 10... cxd4 {[%clk 0:02:31.9]} 11.
exd4 {[%clk 0:02:33.2]} 11... b5 {[%clk 0:02:31.2]} 12. a3 {[%clk 0:02:25.8]}
12... Rab8 {[%clk 0:02:29.3]} 13. O-O {[%clk 0:02:25.3]} 13... a5 {[%clk
0:02:27.4]} 14. Bh4 {[%clk 0:02:06]} 14... Qd8 {[%clk 0:02:10.8]} 15. Qf3 {[%clk
0:02:01.8]} 15... b4 {[%clk 0:02:03]} 16. axb4 {[%clk 0:02:01.2]} 16... axb4
{[%clk 0:02:03.1]} 17. Nxd7 {[%clk 0:01:57.1]} 17... Qxd7 {[%clk 0:02:01.2]} 18.
Bxf6 {[%clk 0:01:57.1]} 18... gxf6 {[%clk 0:02:01.4]} 19. Qh5 {[%clk 0:01:55.6]}
19... f5 {[%clk 0:01:58.8]} 20. Qg5+ {[%clk 0:01:55.7]} 20... Kh8 {[%clk
0:01:59.1]} 21. Qf6+ {[%clk 0:01:56.6]} 21... Kg8 {[%clk 0:01:59.4]} 22. Rf3
{[%clk 0:01:55.6]} 22... Ne7 {[%clk 0:01:59.5]} 23. Qg5+ {[%clk 0:01:26.8]}
23... Ng6 {[%clk 0:01:58.2]} 24. Raf1 {[%clk 0:01:25]} 24... bxc3 {[%clk
0:01:56.5]} 25. bxc3 {[%clk 0:01:25.9]} 25... Rb2 {[%clk 0:01:55.7]} 26. R1f2
{[%clk 0:01:17.1]} 26... Qd8 {[%clk 0:01:55.7]} 27. Qh6 {[%clk 0:01:16.6]} 27...
Qf6 {[%clk 0:01:54.8]} 28. Rh3 {[%clk 0:01:14.7]} 28... Qg7 {[%clk 0:01:54.5]}
29. Qg5 {[%clk 0:01:14.9]} 29... Rxd2 {[%clk 0:01:45.8]} 30. Rxd2 {[%clk
0:01:12]} 30... Bxf4 {[%clk 0:01:44.9]} 31. Qh5 {[%clk 0:01:11.6]} 31... Bxd2
{[%clk 0:01:44.7]} 32. Bxf5 {[%clk 0:01:12.5]} 32... exf5 {[%clk 0:01:44.1]} 33.
Qxf5 {[%clk 0:01:12.1]} 33... Bxc3 {[%clk 0:01:41.3]} 34. Rf3 {[%clk 0:01:06.5]}
34... Bxd4+ {[%clk 0:01:40.4]} 35. Kh1 {[%clk 0:01:06.7]} 35... Nh4 {[%clk
0:01:40.1]} 0-1

[Event "*** Titled Tuesday Blitz"]
[Site "Chess.com"]
[Date "2020.04.28"]
[Round "1"]
[White "YuriyKrykun"]
[Black "pheonixking2000"]
[Result "0-1"]
[WhiteElo "2424"]
[BlackElo "2803"]
[TimeControl "180+1"]
[EndTime "10:04:55 PDT"]
[Termination "pheonixking2000 won by resignation"]

1. e4 {[%clk 0:03:00.3]} 1... c6 {[%clk 0:02:59.5]} 2. d4 {[%clk 0:02:58.4]}
2... d5 {[%clk 0:03:00.2]} 3. Nd2 {[%clk 0:02:58.7]} 3... dxe4 {[%clk
0:02:59.8]} 4. Nxe4 {[%clk 0:02:59.6]} 4... Nf6 {[%clk 0:02:59.1]} 5. Nxf6+
{[%clk 0:02:59.2]} 5... exf6 {[%clk 0:03:00]} 6. c3 {[%clk 0:02:58.7]} 6... Bd6
{[%clk 0:03:00.4]} 7. Bd3 {[%clk 0:02:50.7]} 7... O-O {[%clk 0:03:00.2]} 8. Ne2
{[%clk 0:02:51.2]} 8... Re8 {[%clk 0:02:53.8]} 9. Qc2 {[%clk 0:02:51]} 9... h5
{[%clk 0:02:50]} 10. Be3 {[%clk 0:02:51.3]} 10... Nd7 {[%clk 0:02:49.6]} 11.
O-O-O {[%clk 0:02:51.5]} 11... Nf8 {[%clk 0:02:45.5]} 12. Ng3 {[%clk 0:02:48.1]}
12... Bg4 {[%clk 0:02:28]} 13. Rde1 {[%clk 0:02:43.6]} 13... Qa5 {[%clk
0:02:25.2]} 14. Kb1 {[%clk 0:02:40.8]} 14... b5 {[%clk 0:02:22.9]} 15. Nf5
{[%clk 0:02:39.2]} 15... Bxf5 {[%clk 0:02:19.3]} 16. Bxf5 {[%clk 0:02:38.8]}
16... b4 {[%clk 0:02:17.3]} 17. c4 {[%clk 0:02:38.2]} 17... c5 {[%clk
0:02:15.4]} 18. dxc5 {[%clk 0:02:32]} 18... Bxc5 {[%clk 0:02:15.5]} 19. Bxc5
{[%clk 0:02:32.2]} 19... Qxc5 {[%clk 0:02:15.8]} 20. Be4 {[%clk 0:02:32.5]}
20... Rad8 {[%clk 0:02:08.9]} 21. Bd5 {[%clk 0:02:32.4]} 21... Ne6 {[%clk
0:02:03.1]} 22. Bxe6 {[%clk 0:02:30.4]} 22... Rxe6 {[%clk 0:02:02.9]} 23. Rxe6
{[%clk 0:02:28.3]} 23... fxe6 {[%clk 0:02:03.8]} 24. b3 {[%clk 0:02:19.1]} 24...
Rd4 {[%clk 0:01:57.6]} 25. Qg6 {[%clk 0:02:06.6]} 25... Rd2 {[%clk 0:01:39]} 26.
Rc1 {[%clk 0:01:48.9]} 26... Rxf2 {[%clk 0:01:04.8]} 27. Qe8+ {[%clk 0:01:47.6]}
27... Kh7 {[%clk 0:01:05]} 28. Qxe6 {[%clk 0:01:48]} 28... Qd4 {[%clk 0:01:02]}
29. Rc2 {[%clk 0:01:26.9]} 29... Qd1+ {[%clk 0:01:01.4]} 30. Rc1 {[%clk
0:01:26.7]} 30... Qd3+ {[%clk 0:01:01.9]} 0-1

[Event "*** Titled Tuesday Blitz"]
[Site "Chess.com"]
[Date "2020.04.28"]
[Round "1"]
[White "MateSchmate"]
[Black "HansCoolNiemann"]
[Result "0-1"]
[WhiteElo "2459"]
[BlackElo "2948"]
[TimeControl "180+1"]
[EndTime "10:04:56 PDT"]
[Termination "HansCoolNiemann won by resignation"]

1. e4 {[%clk 0:02:56.6]} 1... g6 {[%clk 0:02:51.6]} 2. f4 {[%clk 0:02:55.6]}
2... Bg7 {[%clk 0:02:51.4]} 3. Nf3 {[%clk 0:02:55.9]} 3... d5 {[%clk 0:02:48.9]}
4. e5 {[%clk 0:02:55.5]} 4... c5 {[%clk 0:02:48.2]} 5. c3 {[%clk 0:02:52.9]}
5... Nc6 {[%clk 0:02:47.5]} 6. d4 {[%clk 0:02:52.4]} 6... Bg4 {[%clk 0:02:47.3]}
7. Bb5 {[%clk 0:02:51.2]} 7... Qb6 {[%clk 0:02:45.5]} 8. Bxc6+ {[%clk
0:02:49.5]} 8... bxc6 {[%clk 0:02:40.9]} 9. dxc5 {[%clk 0:02:39.1]} 9... Qxc5
{[%clk 0:02:40]} 10. Qe2 {[%clk 0:02:39.3]} 10... Nh6 {[%clk 0:02:33.3]} 11. Be3
{[%clk 0:02:34]} 11... Qa5 {[%clk 0:02:32.4]} 12. Nbd2 {[%clk 0:02:31.6]} 12...
O-O {[%clk 0:02:28.6]} 13. Nb3 {[%clk 0:02:31.3]} 13... Qc7 {[%clk 0:02:28.2]}
14. h3 {[%clk 0:02:30.8]} 14... Bxf3 {[%clk 0:02:20.1]} 15. Qxf3 {[%clk
0:02:31.7]} 15... f6 {[%clk 0:02:14.4]} 16. exf6 {[%clk 0:02:28.1]} 16... exf6
{[%clk 0:02:12.2]} 17. O-O {[%clk 0:02:28.3]} 17... Nf5 {[%clk 0:02:11.6]} 18.
Bc5 {[%clk 0:02:28.4]} 18... Rfe8 {[%clk 0:02:11.4]} 19. Rae1 {[%clk 0:02:27.7]}
19... h5 {[%clk 0:02:09.9]} 20. g4 {[%clk 0:02:24.3]} 20... hxg4 {[%clk
0:02:08.7]} 21. hxg4 {[%clk 0:02:25.2]} 21... Nh4 {[%clk 0:01:58.8]} 22. Qf2
{[%clk 0:02:21.2]} 22... g5 {[%clk 0:01:57.8]} 23. fxg5 {[%clk 0:02:19.1]} 23...
fxg5 {[%clk 0:01:56.8]} 24. Nd4 {[%clk 0:01:25.9]} 24... Re4 {[%clk 0:01:52]}
25. Ne6 {[%clk 0:01:17.1]} 25... Qd7 {[%clk 0:01:28]} 26. Rxe4 {[%clk
0:00:52.8]} 26... dxe4 {[%clk 0:01:27.1]} 27. Qf8+ {[%clk 0:00:52.9]} 27... Bxf8
{[%clk 0:01:23.6]} 0-1

[Event "*** Titled Tuesday Blitz"]
[Site "Chess.com"]
[Date "2020.04.28"]
[Round "1"]
[White "Bulldog167"]
[Black "guillembaches"]
[Result "1-0"]
[WhiteElo "2806"]
[BlackElo "2427"]
[TimeControl "180+1"]
[EndTime "10:05:02 PDT"]
[Termination "Bulldog167 won by resignation"]

1. d4 {[%clk 0:03:00.9]} 1... Nf6 {[%clk 0:02:59.9]} 2. c4 {[%clk 0:03:01.1]}
2... e6 {[%clk 0:03:00.3]} 3. Nf3 {[%clk 0:03:01]} 3... d5 {[%clk 0:02:59.6]} 4.
Nc3 {[%clk 0:03:01.4]} 4... Be7 {[%clk 0:02:59.4]} 5. Bg5 {[%clk 0:03:01.6]}
5... Nbd7 {[%clk 0:02:58.3]} 6. cxd5 {[%clk 0:03:00.2]} 6... Nxd5 {[%clk
0:02:56.7]} 7. Bxe7 {[%clk 0:03:00.1]} 7... Nxe7 {[%clk 0:02:56.1]} 8. g3 {[%clk
0:02:58.1]} 8... O-O {[%clk 0:02:51.8]} 9. Bg2 {[%clk 0:02:58.2]} 9... c5 {[%clk
0:02:51.9]} 10. O-O {[%clk 0:02:57.5]} 10... cxd4 {[%clk 0:02:42.1]} 11. Qxd4
{[%clk 0:02:47.7]} 11... Nc6 {[%clk 0:02:38.2]} 12. Qd6 {[%clk 0:02:41.1]} 12...
Nb6 {[%clk 0:02:31]} 13. Ne4 {[%clk 0:02:22.5]} 13... Nc4 {[%clk 0:02:08.3]} 14.
Qxd8 {[%clk 0:02:01.5]} 14... Rxd8 {[%clk 0:02:09.2]} 15. b3 {[%clk 0:01:58.7]}
15... N4a5 {[%clk 0:01:56.6]} 16. Rfc1 {[%clk 0:01:41.1]} 16... f5 {[%clk
0:01:43.8]} 17. Nc5 {[%clk 0:01:36.7]} 17... b6 {[%clk 0:01:42.7]} 18. Nd3
{[%clk 0:01:36.5]} 18... Ba6 {[%clk 0:01:12.8]} 19. Nf4 {[%clk 0:01:22.1]} 19...
e5 {[%clk 0:00:50.9]} 20. Ne6 {[%clk 0:01:22.1]} 20... Re8 {[%clk 0:00:51.1]}
21. Nc7 {[%clk 0:01:21.6]} 21... Bxe2 {[%clk 0:00:51]} 22. Nxa8 {[%clk
0:01:20.3]} 22... Rxa8 {[%clk 0:00:50.8]} 23. Nxe5 {[%clk 0:01:20.2]} 1-0

[Event "*** Titled Tuesday Blitz"]
[Site "Chess.com"]
[Date "2020.04.28"]
[Round "1"]
[White "MatijaOlimpiakosIvic"]
[Black "PavelChernomordik"]
[Result "1-0"]
[WhiteElo "2768"]
[BlackElo "2412"]
[TimeControl "180+1"]
[EndTime "10:05:05 PDT"]
[Termination "MatijaOlimpiakosIvic won by resignation"]

1. Nf3 {[%clk 0:03:00.1]} 1... g6 {[%clk 0:03:00]} 2. c4 {[%clk 0:03:00.6]} 2...
Bg7 {[%clk 0:02:59.5]} 3. g3 {[%clk 0:03:01.2]} 3... e5 {[%clk 0:02:59.1]} 4.
Nc3 {[%clk 0:03:00.8]} 4... Nc6 {[%clk 0:02:59.2]} 5. Bg2 {[%clk 0:03:01.1]}
5... d6 {[%clk 0:02:57]} 6. O-O {[%clk 0:03:01.4]} 6... Be6 {[%clk 0:02:56.2]}
7. d3 {[%clk 0:03:00.9]} 7... h6 {[%clk 0:02:55.6]} 8. Rb1 {[%clk 0:03:00.2]}
8... Qd7 {[%clk 0:02:55]} 9. b4 {[%clk 0:02:58.5]} 9... Bh3 {[%clk 0:02:52.8]}
10. Nd5 {[%clk 0:02:58.2]} 10... Bxg2 {[%clk 0:02:51.5]} 11. Kxg2 {[%clk
0:02:59.1]} 11... Nd8 {[%clk 0:02:48.9]} 12. b5 {[%clk 0:02:58.6]} 12... c6
{[%clk 0:02:45.4]} 13. bxc6 {[%clk 0:02:58.7]} 13... bxc6 {[%clk 0:02:45]} 14.
Nc3 {[%clk 0:02:58.9]} 14... Ne7 {[%clk 0:02:39.4]} 15. Qa4 {[%clk 0:02:57.6]}
15... h5 {[%clk 0:02:34.9]} 16. h4 {[%clk 0:02:53.5]} 16... Ne6 {[%clk
0:02:29.9]} 17. Ba3 {[%clk 0:02:49.4]} 17... f5 {[%clk 0:02:26.9]} 18. Rfc1
{[%clk 0:02:35.3]} 18... f4 {[%clk 0:02:07.4]} 19. Ne4 {[%clk 0:02:33.9]} 19...
Nf5 {[%clk 0:02:06.5]} 20. Qa6 {[%clk 0:02:28.7]} 20... Nc7 {[%clk 0:02:01.8]}
21. Qa4 {[%clk 0:02:13.9]} 21... O-O {[%clk 0:01:57.3]} 22. Rb7 {[%clk
0:02:12.5]} 22... Rac8 {[%clk 0:01:53.3]} 23. Rcb1 {[%clk 0:01:58.5]} 23... fxg3
{[%clk 0:01:51.3]} 24. fxg3 {[%clk 0:01:57.2]} 24... Ne3+ {[%clk 0:01:50.3]} 25.
Kf2 {[%clk 0:01:53.3]} 25... Ng4+ {[%clk 0:01:49]} 26. Kg2 {[%clk 0:01:51.5]}
26... Ne3+ {[%clk 0:01:47.8]} 27. Kh2 {[%clk 0:01:45.6]} 27... Ng4+ {[%clk
0:01:46.1]} 28. Kg1 {[%clk 0:01:43.3]} 28... Ne3 {[%clk 0:01:44.8]} 29. Kf2
{[%clk 0:01:21.6]} 29... Ng4+ {[%clk 0:01:43.7]} 30. Ke1 {[%clk 0:01:18.8]}
30... Bh6 {[%clk 0:01:43.3]} 31. Bxd6 {[%clk 0:01:07.7]} 31... Rxf3 {[%clk
0:01:28.8]} 32. exf3 {[%clk 0:01:06]} 32... Nh2 {[%clk 0:01:27.8]} 33. Nf6+
{[%clk 0:01:04.6]} 1-0

[Event "*** Titled Tuesday Blitz"]
[Site "Chess.com"]
[Date "2020.04.28"]
[Round "1"]
[White "cukin84"]
[Black "Malev212"]
[Result "0-1"]
[WhiteElo "2078"]
[BlackElo "2503"]
[TimeControl "180+1"]
[EndTime "10:05:06 PDT"]
[Termination "Malev212 won by resignation"]

1. e4 {[%clk 0:02:59.1]} 1... c6 {[%clk 0:02:53.3]} 2. d4 {[%clk 0:02:58]} 2...
d5 {[%clk 0:02:52.9]} 3. exd5 {[%clk 0:02:54]} 3... cxd5 {[%clk 0:02:51]} 4. Bd3
{[%clk 0:02:53.9]} 4... Nc6 {[%clk 0:02:50.4]} 5. c3 {[%clk 0:02:52.6]} 5... Qc7
{[%clk 0:02:50.2]} 6. h3 {[%clk 0:02:48.6]} 6... g6 {[%clk 0:02:45.9]} 7. Nf3
{[%clk 0:02:48.7]} 7... Bf5 {[%clk 0:02:44.7]} 8. Bxf5 {[%clk 0:02:47.8]} 8...
gxf5 {[%clk 0:02:44.5]} 9. g3 {[%clk 0:02:45.1]} 9... e6 {[%clk 0:02:43]} 10.
O-O {[%clk 0:02:39.3]} 10... Bd6 {[%clk 0:02:41]} 11. Kh2 {[%clk 0:02:36.3]}
11... Nf6 {[%clk 0:02:40]} 12. Bg5 {[%clk 0:02:30.8]} 12... Ne4 {[%clk
0:02:38.4]} 13. Nbd2 {[%clk 0:02:24.1]} 13... Bxg3+ {[%clk 0:02:27.7]} 14. fxg3
{[%clk 0:02:03]} 14... Qxg3+ {[%clk 0:02:24]} 15. Kh1 {[%clk 0:02:02.6]} 15...
Rg8 {[%clk 0:01:58.6]} 16. Nxe4 {[%clk 0:01:41.8]} 16... fxe4 {[%clk 0:01:49.8]}
17. Ng1 {[%clk 0:01:27]} 17... Rxg5 {[%clk 0:01:45.3]} 18. Qe2 {[%clk
0:01:26.1]} 18... f5 {[%clk 0:01:35]} 19. Qh2 {[%clk 0:01:21.8]} 19... O-O-O
{[%clk 0:01:32.7]} 20. b4 {[%clk 0:01:16.6]} 20... Rdg8 {[%clk 0:01:30.1]} 21.
Qxg3 {[%clk 0:01:14.9]} 21... Rxg3 {[%clk 0:01:29.3]} 22. b5 {[%clk 0:01:15]}
22... Na5 {[%clk 0:01:28.4]} 23. a4 {[%clk 0:01:06.6]} 23... Nc4 {[%clk
0:01:27.1]} 24. Ra2 {[%clk 0:01:06.1]} 24... e3 {[%clk 0:01:26.4]} 25. Kh2
{[%clk 0:00:58]} 25... Nd2 {[%clk 0:01:24.5]} 26. Re1 {[%clk 0:00:50]} 26...
Rxg1 {[%clk 0:01:23.1]} 0-1

[Event "*** Titled Tuesday Blitz"]
[Site "Chess.com"]
[Date "2020.04.28"]
[Round "1"]
[White "barbara25"]
[Black "IwkooO"]
[Result "1/2-1/2"]
[WhiteElo "2273"]
[BlackElo "2589"]
[TimeControl "180+1"]
[EndTime "10:05:07 PDT"]
[Termination "Game drawn by agreement"]

1. e4 {[%clk 0:03:00.6]} 1... c5 {[%clk 0:02:59.7]} 2. Nf3 {[%clk 0:02:58.3]}
2... e6 {[%clk 0:02:59.8]} 3. g3 {[%clk 0:02:57.9]} 3... Nc6 {[%clk 0:02:53.9]}
4. Bg2 {[%clk 0:02:57.2]} 4... d5 {[%clk 0:02:54.2]} 5. exd5 {[%clk 0:02:55.4]}
5... exd5 {[%clk 0:02:55.1]} 6. d4 {[%clk 0:02:55.4]} 6... Nf6 {[%clk
0:02:53.7]} 7. O-O {[%clk 0:02:55]} 7... h6 {[%clk 0:02:42.8]} 8. c4 {[%clk
0:02:41.4]} 8... Be6 {[%clk 0:02:18.5]} 9. cxd5 {[%clk 0:02:33.3]} 9... Nxd5
{[%clk 0:02:18.5]} 10. Nc3 {[%clk 0:02:31.8]} 10... Be7 {[%clk 0:02:10.3]} 11.
Nxd5 {[%clk 0:02:23.3]} 11... Bxd5 {[%clk 0:02:10.4]} 12. Be3 {[%clk 0:02:22.4]}
12... cxd4 {[%clk 0:02:08.4]} 13. Nxd4 {[%clk 0:02:12.2]} 13... Bxg2 {[%clk
0:02:06.7]} 14. Kxg2 {[%clk 0:02:11]} 14... Nxd4 {[%clk 0:01:11]} 15. Qxd4
{[%clk 0:02:09.4]} 15... O-O {[%clk 0:00:54.6]} 16. Qxd8 {[%clk 0:02:05.7]}
16... Rfxd8 {[%clk 0:00:54.5]} 17. Rac1 {[%clk 0:02:05.8]} 17... Bf6 {[%clk
0:00:53.4]} 18. b3 {[%clk 0:02:05.6]} 18... Rd7 {[%clk 0:00:52]} 19. Rc4 {[%clk
0:02:03.6]} 19... b6 {[%clk 0:00:51.8]} 20. Rfc1 {[%clk 0:02:03.1]} 20... Kf8
{[%clk 0:00:51.7]} 21. f4 {[%clk 0:02:00.7]} 21... Ke7 {[%clk 0:00:51]} 22. Kf3
{[%clk 0:02:00.5]} 22... Rad8 {[%clk 0:00:50.8]} 23. h3 {[%clk 0:01:55]} 23...
h5 {[%clk 0:00:50.9]} 24. g4 {[%clk 0:01:54.4]} 24... hxg4+ {[%clk 0:00:50.5]}
25. hxg4 {[%clk 0:01:54.5]} 25... Bb2 {[%clk 0:00:50.1]} 26. R1c2 {[%clk
0:01:53.7]} 26... Bd4 {[%clk 0:00:32.8]} 27. Bxd4 {[%clk 0:01:44.2]} 27... Rxd4
{[%clk 0:00:33.7]} 28. Rxd4 {[%clk 0:01:44.4]} 28... Rxd4 {[%clk 0:00:32.2]} 29.
Rc7+ {[%clk 0:01:44.9]} 29... Rd7 {[%clk 0:00:32.8]} 1/2-1/2

[Event "*** Titled Tuesday Blitz"]
[Site "Chess.com"]
[Date "2020.04.28"]
[Round "1"]
[White "GasconJR"]
[Black "ChessBitl"]
[Result "1-0"]
[WhiteElo "2602"]
[BlackElo "2270"]
[TimeControl "180+1"]
[EndTime "10:05:10 PDT"]
[Termination "GasconJR won by resignation"]

1. d4 {[%clk 0:03:00.9]} 1... d5 {[%clk 0:02:58.7]} 2. Bf4 {[%clk 0:02:59.9]}
2... Bf5 {[%clk 0:02:57.6]} 3. e3 {[%clk 0:02:59.1]} 3... e6 {[%clk 0:02:57.5]}
4. c4 {[%clk 0:02:57.9]} 4... c6 {[%clk 0:02:56.4]} 5. Qb3 {[%clk 0:02:51.5]}
5... Qb6 {[%clk 0:02:55.4]} 6. c5 {[%clk 0:02:49.1]} 6... Qxb3 {[%clk 0:02:55]}
7. axb3 {[%clk 0:02:50]} 7... Nd7 {[%clk 0:02:50.9]} 8. b4 {[%clk 0:02:46.8]}
8... f6 {[%clk 0:02:50.4]} 9. Nf3 {[%clk 0:02:42.2]} 9... g5 {[%clk 0:02:43.5]}
10. Bg3 {[%clk 0:02:40.5]} 10... h5 {[%clk 0:02:41.2]} 11. h3 {[%clk 0:02:25]}
11... h4 {[%clk 0:02:35.3]} 12. Bh2 {[%clk 0:02:24.6]} 12... a6 {[%clk 0:02:34]}
13. b5 {[%clk 0:02:23.4]} 13... Bxb1 {[%clk 0:02:32.3]} 14. bxc6 {[%clk
0:02:18.7]} 14... Be4 {[%clk 0:02:29.8]} 15. cxd7+ {[%clk 0:02:17.4]} 15... Kxd7
{[%clk 0:02:28.4]} 16. Nd2 {[%clk 0:02:17]} 16... Bg6 {[%clk 0:02:26.1]} 17. b4
{[%clk 0:02:15.9]} 17... Ne7 {[%clk 0:01:57.2]} 18. b5 {[%clk 0:02:12.5]} 18...
a5 {[%clk 0:01:55.2]} 19. Nb3 {[%clk 0:01:42.3]} 19... a4 {[%clk 0:01:54.6]} 20.
c6+ {[%clk 0:01:40.9]} 20... bxc6 {[%clk 0:01:47.2]} 21. Nc5+ {[%clk 0:01:40.2]}
21... Kc8 {[%clk 0:01:42.6]} 22. b6 {[%clk 0:01:40]} 22... Rb8 {[%clk 0:00:21]}
23. Ba6+ {[%clk 0:01:36.7]} 23... Kd8 {[%clk 0:00:17.8]} 24. Bxb8 {[%clk
0:01:36.1]} 1-0

[Event "*** Titled Tuesday Blitz"]
[Site "Chess.com"]
[Date "2020.04.28"]
[Round "1"]
[White "UCantHandleDenker"]
[Black "ALEXJR20"]
[Result "1-0"]
[WhiteElo "2557"]
[BlackElo "2216"]
[TimeControl "180+1"]
[EndTime "10:05:12 PDT"]
[Termination "UCantHandleDenker won by resignation"]

1. Nf3 {[%clk 0:02:56.1]} 1... Nf6 {[%clk 0:02:55.4]} 2. c4 {[%clk 0:02:54.6]}
2... c5 {[%clk 0:02:36.5]} 3. g3 {[%clk 0:02:54.6]} 3... Nc6 {[%clk 0:02:35.3]}
4. Bg2 {[%clk 0:02:55.1]} 4... e6 {[%clk 0:02:34.9]} 5. O-O {[%clk 0:02:55.6]}
5... Be7 {[%clk 0:02:18]} 6. Nc3 {[%clk 0:02:55]} 6... d5 {[%clk 0:02:16.9]} 7.
cxd5 {[%clk 0:02:52.9]} 7... exd5 {[%clk 0:02:17.8]} 8. d4 {[%clk 0:02:52.9]}
8... Be6 {[%clk 0:02:16.3]} 9. Bg5 {[%clk 0:02:48]} 9... c4 {[%clk 0:02:09.8]}
10. Ne5 {[%clk 0:02:42.9]} 10... h6 {[%clk 0:02:00.8]} 11. Bxf6 {[%clk
0:02:32.3]} 11... Bxf6 {[%clk 0:01:57.3]} 12. Nxc6 {[%clk 0:02:32.7]} 12... bxc6
{[%clk 0:01:57.1]} 13. e3 {[%clk 0:02:33.3]} 13... O-O {[%clk 0:01:51.3]} 14. b3
{[%clk 0:02:30.8]} 14... cxb3 {[%clk 0:01:49]} 15. axb3 {[%clk 0:02:27.5]} 15...
a5 {[%clk 0:01:42.3]} 16. Na4 {[%clk 0:02:27]} 16... Be7 {[%clk 0:01:36.4]} 17.
Rc1 {[%clk 0:02:26.3]} 17... Qd7 {[%clk 0:01:24.9]} 18. Nb6 {[%clk 0:02:24.4]}
18... Qb7 {[%clk 0:01:22.1]} 19. Nxa8 {[%clk 0:02:24.2]} 19... Rxa8 {[%clk
0:01:22]} 20. Qc2 {[%clk 0:02:22.7]} 20... Bd7 {[%clk 0:01:17.7]} 21. Rfd1
{[%clk 0:02:15.5]} 21... a4 {[%clk 0:01:17.4]} 22. bxa4 {[%clk 0:02:13]} 22...
g6 {[%clk 0:01:09.1]} 23. Ra1 {[%clk 0:02:09.9]} 23... Ra5 {[%clk 0:01:05.8]}
24. Rdb1 {[%clk 0:02:08.4]} 24... Qa6 {[%clk 0:01:04.9]} 25. Bf1 {[%clk
0:02:08]} 25... Qa7 {[%clk 0:01:04.5]} 26. Bd3 {[%clk 0:02:07.7]} 26... Kg7
{[%clk 0:01:03.4]} 27. h4 {[%clk 0:02:07.6]} 27... g5 {[%clk 0:01:02.4]} 28.
hxg5 {[%clk 0:02:06.5]} 28... hxg5 {[%clk 0:01:03.3]} 29. Bf5 {[%clk 0:01:48]}
29... Be8 {[%clk 0:00:58.3]} 30. Kg2 {[%clk 0:01:46.7]} 30... f6 {[%clk
0:00:56.9]} 31. Rh1 {[%clk 0:01:45.6]} 31... c5 {[%clk 0:00:49.4]} 32. Rh7+
{[%clk 0:01:41.9]} 32... Kf8 {[%clk 0:00:46.4]} 33. Rh8+ {[%clk 0:01:41.2]}
33... Kf7 {[%clk 0:00:40.9]} 34. Bg6+ {[%clk 0:01:39.9]} 1-0